bitfinex/quotes_SOLUSD_20241231
["timestamp","ask_amount","ask_price","bid_price","bid_amount"]
[1735635007956,6.4679,193.19,193.13,16.12689057]
[1735635008260,1.5212,193.21,193.14,16.9031693]
[1735635009138,1.5212,193.21,193.14,0.77627873]
[1735635009463,1.5212,193.21,193.12,0.77635419]
[1735635009761,1.5212,193.21,193.13,39.90377457]
[1735635009938,1.5212,193.21,193.14,0.77628345]
[1735635010341,21.5212,193.21,193.12,0.77640776]
[1735635011450,1.5212,193.21,193.13,36.12689057]
[1735635011650,1.5212,193.21,193.14,0.77631761]
[1735635012462,21.5212,193.21,193.11,0.77640135]
[1735635012680,0.78611896,193.2,193.06,16.12689057]
[1735635012844,0.78611896,193.2,193.07,0.77657421]
[1735635013046,0.78611896,193.2,193.07,16.90346478]
[1735635013453,1.82121896,193.2,193.08,2.45160483]
[1735635013663,6.4679,193.19,193.08,2.45160483]
[1735635013976,0.78611896,193.18,193.08,2.45160483]
[1735635014468,0.78611896,193.18,193.07,0.77654341]
[1735635015462,7.25401896,193.19,193.07,0.77654341]
[1735635015770,7.25401896,193.19,193.08,2.45580575]
[1735635016460,7.25401896,193.19,193.07,0.77654341]
[1735635017174,1.6424,193.15,193.06,3.92972218]
[1735635017369,0.78611896,193.14,193.06,3.92972218]
[1735635017756,0.78611896,193.14,193.07,2.45558259]
[1735635018770,2.42851896,193.15,193.06,3.6924859]
[1735635018973,2.42851896,193.15,193.05,0.77673607]
[1735635019374,1.6424,193.15,193.05,0.77673607]
[1735635019576,2.42851896,193.15,193.06,2.45558883]
[1735635019874,6.5291,193.14,193.06,2.45558883]
[1735635020073,20.0,193.11,193.06,2.45558883]
[1735635020257,0.78611896,193.1,193.07,2.45558883]
[1735635020573,20.0,193.11,193.07,2.45558883]
[1735635020991,20.0,193.11,193.0,23.776884]
[1735635021285,20.0,193.11,193.01,0.77685384]
[1735635021581,20.0,193.11,193.01,4.47173543]
[1735635022287,20.0,193.11,193.01,0.77685384]
[1735635023088,20.0,193.11,193.02,39.90377457]
[1735635023393,6.5291,193.14,193.06,39.90377457]
[1735635023670,6.5291,193.14,193.08,23.776884]
[1735635023877,6.5291,193.14,193.09,0.7765061]
[1735635026162,6.5291,193.14,193.06,20.77653948]
[1735635027253,6.5291,193.14,193.06,20.0]
[1735635027869,6.5291,193.14,193.07,16.90355702]
[1735635028072,6.5291,193.14,193.07,0.77666645]
[1735635028373,6.5291,193.14,193.05,0.77658584]
[1735635028758,6.5291,193.14,193.06,2.45509013]
[1735635029184,6.5291,193.14,193.07,0.77668459]
[1735635029657,6.5291,193.14,193.05,0.77665226]
[1735635031475,20.0,193.11,193.02,0.7767457]
[1735635032261,20.0,193.11,193.03,0.77681891]
[1735635032468,7.5646,193.14,193.03,0.77681891]
[1735635033071,0.78611896,193.13,193.03,0.77681891]
[1735635033264,0.78611896,193.13,193.01,0.77685447]
[1735635033265,1.6355,193.1,193.01,0.77685447]
[1735635033470,6.1008,193.08,192.99,0.77692478]
[1735635033776,0.78611896,193.07,192.99,2.45505907]
[1735635034154,0.78611896,193.07,192.98,4.47216094]
[1735635034359,0.78611896,193.07,192.98,3.69511758]
[1735635034584,6.1008,193.08,192.98,0.77702619]
[1735635035690,6.1008,193.08,193.01,23.776884]
[1735635035880,6.1008,193.08,193.02,0.77679142]
[1735635036585,6.1008,193.08,193.02,20.77679142]
[1735635037085,6.1008,193.08,193.01,3.69063716]
[1735635037666,6.1008,193.08,192.98,137.6]
[1735635037866,6.1008,193.08,192.99,0.77693347]
[1735635038189,6.1008,193.08,192.99,3.22998453]
[1735635038487,0.78611896,193.07,192.99,3.22998453]
[1735635039194,6.1008,193.08,192.99,0.77693347]
[1735635039972,6.1008,193.08,192.98,40.68076232]
[1735635040471,6.1008,193.08,192.98,24.55387175]
[1735635040915,6.1008,193.08,192.98,40.68076232]
[1735635041192,6.1008,193.08,192.99,16.12689057]
[1735635041488,6.1008,193.08,193.0,0.77689806]
[1735635042288,0.78611896,193.07,192.98,0.77694187]
[1735635043070,6.1008,193.08,192.98,0.77694187]
[1735635043271,0.78611896,193.07,192.97,0.77699586]
[1735635044182,6.1008,193.08,192.98,16.12689057]
[1735635044491,6.1008,193.08,192.99,0.77691549]
[1735635044877,1.82191896,193.07,192.97,2.45130435]
[1735635045200,20.0,193.05,192.96,4.70107135]
[1735635045382,0.78611896,193.04,192.96,4.70107135]
[1735635045582,20.0,193.05,192.96,4.70107135]
[1735635045797,20.0,193.05,192.96,0.77692321]
[1735635046100,2.31211896,193.04,192.95,6.14016524]
[1735635046595,20.0,193.0,192.93,3.68855467]
[1735635047171,20.0,193.0,192.92,4.70138244]
[1735635047497,1.526,192.98,192.91,2.45269271]
[1735635047794,6.79271896,192.97,192.91,2.45269271]
[1735635048276,6.79271896,192.97,192.87,3.69134123]
[1735635048699,6.79271896,192.97,192.85,0.7774522]
[1735635048700,24.813284,192.96,192.86,20.0]
[1735635048895,0.78611896,192.95,192.86,20.0]
[1735635049275,20.0,192.91,192.81,2.45475193]
[1735635049482,1.526,192.89,192.81,2.45475193]
[1735635049686,6.0066,192.88,192.81,2.45475193]
[1735635049881,6.0066,192.88,192.78,0.77756475]
[1735635050089,0.78611896,192.87,192.78,0.77756475]
[1735635050516,0.78611896,192.87,192.78,2.4544214]
[1735635051302,0.78611896,192.87,192.77,20.0]
[1735635051479,0.78611896,192.87,192.76,0.77785459]
[1735635051674,6.79271896,192.88,192.76,16.90474516]
[1735635051886,0.78611896,192.87,192.76,0.77785459]
[1735635052088,0.78611896,192.87,192.77,0.77785278]
[1735635053002,0.78611896,192.87,192.76,0.77786114]
[1735635053181,20.0,192.85,192.76,0.77786114]
[1735635055407,20.78611896,192.84,192.71,0.77782528]
[1735635056409,6.0066,192.82,192.71,0.77782528]
[1735635056595,20.0,192.79,192.71,0.77782528]
[1735635059106,1.515,192.77,192.69,0.77813764]
[1735635059297,6.3291,192.76,192.67,0.77815852]
[1735635059503,0.78611896,192.75,192.67,0.77815852]
[1735635059704,6.3291,192.76,192.66,20.0]
[1735635059906,6.3291,192.76,192.67,0.77818075]
[1735635060102,7.11521896,192.76,192.67,0.77818075]
[1735635060814,6.3291,192.76,192.68,0.77826642]
[1735635061194,6.3291,192.76,192.65,0.77822543]
[1735635061397,20.0,192.73,192.65,0.77822543]
[1735635061595,20.0,192.73,192.61,0.77837424]
[1735635061991,20.0,192.73,192.61,3.21675378]
[1735635062197,6.3291,192.71,192.61,3.21675378]
[1735635062405,20.0,192.68,192.61,3.21675378]
[1735635062589,20.0,192.68,192.59,0.77847923]
[1735635062793,1.515,192.67,192.59,0.77847923]
[1735635063096,1.515,192.67,192.52,0.77857498]
[1735635063097,20.0,192.63,192.52,0.77857498]
[1735635063292,1.515,192.61,192.52,0.77857498]
[1735635063492,20.0,192.57,192.48,0.77885452]
[1735635064290,20.0,192.57,192.44,25.92095733]
[1735635064495,20.0,192.57,192.45,0.77898886]
[1735635065493,20.0,192.57,192.46,0.77901206]
[1735635066010,20.0,192.49,192.37,0.77903949]
[1735635066213,0.78611896,192.48,192.37,0.77903949]
[1735635066607,20.0,192.49,192.37,0.77903949]
[1735635066808,0.78611896,192.48,192.37,0.77903949]
[1735635067007,7.6619,192.47,192.34,0.77942699]
[1735635067222,20.0,192.4,192.32,0.77947227]
[1735635067516,20.0,192.4,192.27,0.77964721]
[1735635067726,0.78611896,192.46,192.29,25.92095733]
[1735635067900,3.1158,192.56,192.3,26.70053228]
[1735635068093,1.0386,192.56,192.35,25.92095733]
[1735635068414,1.0386,192.56,192.36,0.77939207]
[1735635068812,20.0,192.52,192.37,23.776884]
[1735635069019,20.0,192.52,192.38,0.77939241]
[1735635069224,20.0,192.44,192.38,0.77939241]
[1735635069526,20.0,192.48,192.33,26.70044086]
[1735635069731,20.0,192.44,192.33,0.77948353]
[1735635070336,20.0,192.44,192.34,0.77949111]
[1735635070716,2.0771,192.57,192.34,0.77949111]
[1735635070912,6.1042,192.53,192.34,0.77949111]
[1735635071412,6.1042,192.53,192.36,23.776884]
[1735635071611,6.1042,192.53,192.37,0.77941632]
[1735635072530,6.1042,192.53,192.39,23.776884]
[1735635072745,6.1042,192.53,192.4,0.77924154]
[1735635072940,23.776884,192.52,192.4,0.77924154]
[1735635073235,20.0,192.49,192.4,0.77924154]
[1735635075534,20.0,192.49,192.41,0.77938838]
[1735635075740,20.0,192.49,192.38,0.77930353]
[1735635076835,20.0,192.49,192.35,25.92095733]
[1735635077040,20.0,192.49,192.31,138.3794233]
[1735635077041,20.0,192.49,192.37,23.776884]
[1735635077228,20.0,192.49,192.36,50.47723139]
[1735635077229,20.0,192.49,192.38,0.77934763]
[1735635077656,20.0,192.49,192.39,23.776884]
[1735635077973,6.1042,192.53,192.43,23.776884]
[1735635078130,6.1042,192.53,192.45,20.0]
[1735635078358,6.1042,192.53,192.46,0.77904106]
[1735635080557,6.5712,192.58,192.48,25.92095733]
[1735635080767,6.5712,192.58,192.49,0.77888563]
[1735635081626,6.5712,192.58,192.46,25.92095733]
[1735635081847,20.0,192.55,192.44,0.77895293]
[1735635082747,20.0,192.55,192.45,25.92095733]
[1735635083068,6.5712,192.58,192.47,49.69784133]
[1735635083268,6.5712,192.58,192.49,23.776884]
[1735635083461,6.5712,192.58,192.5,0.77881423]
[1735635084859,20.0,192.6,192.51,49.69784133]
[1735635085063,1.5291,192.61,192.52,26.69970928]
[1735635085239,1.5291,192.61,192.52,0.77875195]
[1735635085439,1.5291,192.61,192.51,20.0]
[1735635085638,20.0,192.6,192.5,0.77875501]
[1735635086053,20.0,192.6,192.48,0.77890987]
[1735635087159,20.0,192.6,192.47,0.77901877]
[1735635087654,20.0,192.6,192.48,23.776884]
[1735635087886,20.0,192.6,192.49,0.77890952]
[1735635089360,20.0,192.6,192.47,0.77901873]
[1735635090394,23.776884,192.59,192.47,0.77901873]
[1735635090582,20.0,192.56,192.47,0.77901873]
[1735635091874,1.0385,192.58,192.47,0.77901873]
[1735635092270,1.0385,192.58,192.48,0.77899367]
[1735635092891,1.0385,192.58,192.46,0.77905906]
[1735635093399,1.0385,192.58,192.44,0.77905033]
[1735635093569,20.0,192.54,192.44,0.77905033]
[1735635093772,25.438584,192.53,192.42,0.77919731]
[1735635093971,20.0,192.5,192.38,0.77927303]
[1735635094270,1.6617,192.53,192.38,6.89060215]
[1735635094670,29.791384,192.52,192.38,6.89060215]
[1735635094859,29.791384,192.52,192.36,0.77939919]
[1735635094860,23.776884,192.5,192.36,0.77939919]
[1735635095866,23.776884,192.48,192.34,4.45789476]
[1735635096071,23.776884,192.48,192.34,6.90190123]
[1735635096262,23.776884,192.48,192.34,3.22350825]
[1735635096665,23.776884,192.48,192.34,0.77950178]
[1735635096881,23.776884,192.48,192.33,0.77953574]
[1735635097273,23.776884,192.46,192.33,0.77953574]
[1735635097469,20.0,192.41,192.32,9.8097686]
[1735635097675,20.0,192.41,192.32,3.91457721]
[1735635097971,20.0,192.42,192.32,3.91457721]
[1735635098167,20.0,192.42,192.29,0.77975733]
[1735635098386,23.776884,192.41,192.28,3.68975758]
[1735635098587,20.0,192.42,192.28,3.68975758]
[1735635098781,20.0,192.42,192.29,4.46957079]
[1735635099024,20.0,192.42,192.29,6.92276914]
[1735635099193,23.776884,192.41,192.29,6.92276914]
[1735635099495,23.776884,192.41,192.3,3.68975758]
[1735635099668,24.816284,192.41,192.3,3.68975758]
[1735635099885,20.0,192.38,192.3,3.68975758]
[1735635100085,20.0,192.38,192.26,3.50113465]
[1735635100279,23.776884,192.37,192.26,2.7213621]
[1735635100481,20.0,192.34,192.26,2.7213621]
[1735635100680,20.0,192.34,192.27,3.69931272]
[1735635100882,1.0394,192.41,192.28,0.77993082]
[1735635101079,23.776884,192.4,192.28,4.47924354]
[1735635101273,23.776884,192.4,192.28,3.69931272]
[1735635101592,20.0,192.37,192.28,3.69931272]
[1735635101760,20.0,192.37,192.25,0.77991178]
[1735635102166,23.776884,192.39,192.25,0.77991178]
[1735635102368,20.0,192.32,192.26,2.46058793]
[1735635102773,7.6762,192.35,192.26,2.46058793]
[1735635102985,1.0394,192.41,192.27,0.77992976]
[1735635103288,8.7156,192.41,192.27,0.77992976]
[1735635103461,8.7156,192.41,192.28,6.39880851]
[1735635103665,8.7156,192.41,192.28,10.07555695]
[1735635103988,23.776884,192.4,192.28,10.07555695]
[1735635104183,23.776884,192.4,192.29,2.46099842]
[1735635104389,7.6762,192.41,192.3,26.02333864]
[1735635104589,7.6762,192.41,192.31,0.77965845]
[1735635104888,20.0,192.38,192.31,15.53292267]
[1735635105088,20.0,192.38,192.31,14.75326422]
[1735635105490,20.0,192.38,192.31,12.80044308]
[1735635105784,20.0,192.38,192.32,10.08377168]
[1735635106184,8.2513,192.46,192.33,26.80304374]
[1735635106380,20.0,192.42,192.33,4.45645354]
[1735635106691,20.0,192.42,192.33,10.86347678]
[1735635106868,20.0,192.42,192.34,9.56485356]
[1735635107070,20.0,192.43,192.35,0.77949572]
[1735635107588,8.2513,192.46,192.36,3.67674844]
[1735635107798,8.2513,192.46,192.36,10.08377168]
[1735635107980,8.2513,192.46,192.37,4.45622619]
[1735635108395,20.0,192.43,192.37,0.77947775]
[1735635108589,8.2513,192.46,192.38,2.46099842]
[1735635108970,20.0,192.43,192.38,2.46099842]
[1735635109167,20.0,192.43,192.34,23.776884]
[1735635109488,8.2513,192.5,192.36,26.02333864]
[1735635109489,20.0,192.47,192.36,26.02333864]
[1735635109688,8.2513,192.5,192.37,24.55624161]
[1735635110090,8.2513,192.5,192.38,26.02333864]
[1735635110392,8.2513,192.5,192.39,0.77933331]
[1735635110595,20.0,192.47,192.39,3.51764037]
[1735635110797,20.0,192.47,192.4,3.68476449]
[1735635110992,20.0,192.47,192.41,0.77933715]
[1735635111372,20.0,192.47,192.42,2.47139848]
[1735635111573,8.2513,192.55,192.42,2.47139848]
[1735635111982,20.0,192.52,192.4,0.77927696]
[1735635112175,8.2513,192.55,192.41,23.776884]
[1735635112380,8.2513,192.55,192.42,26.80256089]
[1735635112582,8.2513,192.6,192.45,23.776884]
[1735635112815,8.2513,192.6,192.46,0.77901336]
[1735635113327,23.776884,192.59,192.46,0.77901336]
[1735635113615,23.776884,192.59,192.47,2.46831531]
[1735635113992,9.2897,192.6,192.47,2.46831531]
[1735635114325,23.776884,192.59,192.46,0.77901336]
[1735635114733,20.0,192.56,192.46,0.77901336]
[1735635115921,9.2897,192.6,192.46,0.77901336]
[1735635116233,20.0,192.57,192.46,0.77901336]
[1735635116391,20.0,192.57,192.47,23.776884]
[1735635116600,1.0382,192.64,192.49,23.776884]
[1735635116898,20.0,192.62,192.5,33.16694144]
[1735635117099,1.0382,192.64,192.5,33.16694144]
[1735635117417,1.0382,192.64,192.51,49.80022264]
[1735635117621,8.2513,192.65,192.54,20.0]
[1735635117820,1.038,192.68,192.55,0.77871458]
[1735635118207,8.2513,192.7,192.56,49.80022264]
[1735635118529,8.2513,192.75,192.58,25.425584]
[1735635118720,8.2513,192.75,192.61,6.3648]
[1735635118896,8.2513,192.75,192.62,0.77836983]
[1735635119317,1.0374,192.78,192.63,23.776884]
[1735635119497,1.0374,192.78,192.64,0.77831552]
[1735635119808,20.0,192.77,192.65,23.776884]
[1735635120011,20.0,192.77,192.66,0.77822612]
[1735635120207,20.0,192.77,192.62,0.778316]
[1735635120413,1.0375,192.76,192.62,0.778316]
[1735635120897,1.0375,192.76,192.61,6.3648]
[1735635121101,20.0,192.72,192.61,6.3648]
[1735635122377,20.0,192.68,192.57,0.77852171]
[1735635122582,20.0,192.64,192.56,6.445]
[1735635122895,20.0,192.64,192.54,0.7787007]
[1735635123607,20.0,192.64,192.52,2.35127193]
[1735635123813,7.7964,192.68,192.52,1.5725]
[1735635123814,20.0,192.6,192.52,1.5725]
[1735635124384,20.0,192.6,192.51,6.445]
[1735635124793,23.776884,192.59,192.5,0.77888097]
[1735635125108,20.0,192.56,192.48,0.7790318]
[1735635125608,1.0382,192.64,192.49,49.80022264]
[1735635125807,1.0382,192.64,192.5,26.80220217]
[1735635126010,1.0382,192.64,192.5,0.77886353]
[1735635126513,20.0,192.6,192.49,0.77896144]
[1735635126801,20.0,192.56,192.47,0.77896513]
[1735635127582,1.0382,192.64,192.47,0.77896513]
[1735635127583,1.0382,192.64,192.48,23.776884]
[1735635127804,1.0382,192.64,192.49,0.77890922]
[1735635127983,23.776884,192.63,192.49,0.77890922]
[1735635128183,20.0,192.6,192.49,0.77890922]
[1735635129292,8.8344,192.68,192.53,26.02333864]
[1735635129511,8.8344,192.68,192.54,0.77873124]
[1735635129689,20.0,192.64,192.5,26.02333864]
[1735635129897,20.0,192.64,192.51,26.80221997]
[1735635130207,20.0,192.65,192.52,49.80022264]
[1735635130502,20.0,192.65,192.53,0.77876214]
[1735635130703,23.776884,192.67,192.53,0.77876214]
[1735635130909,20.0,192.65,192.53,0.77876214]
[1735635131790,20.0,192.65,192.54,23.776884]
[1735635131997,1.0378,192.72,192.56,6.1316]
[1735635132205,1.0378,192.72,192.57,0.77858122]
[1735635132508,20.0,192.7,192.57,0.77858122]
[1735635133303,1.0375,192.76,192.6,23.776884]
[1735635133493,1.0375,192.76,192.61,0.77838148]
[1735635133700,6.6621,192.78,192.63,26.02333864]
[1735635134014,20.0,192.74,192.64,0.77826901]
[1735635134199,20.0,192.74,192.6,0.77832427]
[1735635134398,23.776884,192.73,192.6,0.77832427]
[1735635134588,20.0,192.7,192.6,0.77832427]
[1735635135326,6.6621,192.78,192.61,50.57880525]
[1735635136109,6.6621,192.78,192.61,24.55546661]
[1735635136408,20.0,192.7,192.61,0.77858261]
[1735635136607,23.776884,192.69,192.58,0.77852269]
[1735635136813,20.0,192.66,192.57,1.5852]
[1735635137216,20.0,192.66,192.58,0.7786782]
[1735635137411,1.0376,192.74,192.58,0.7786782]
[1735635137593,3.1129,192.74,192.58,0.7786782]
[1735635138824,3.1129,192.74,192.57,1.5852]
[1735635138825,23.776884,192.71,192.57,1.5852]
[1735635139125,20.0,192.64,192.56,6.1316]
[1735635139419,20.0,192.64,192.51,7.7511]
[1735635139613,20.0,192.6,192.51,7.7511]
[1735635140220,20.0,192.6,192.49,0.77877886]
[1735635140906,20.0,192.6,192.5,0.77896343]
[1735635141112,1.0381,192.66,192.51,26.02333864]
[1735635141415,1.0381,192.66,192.53,49.80022264]
[1735635141616,1.0379,192.7,192.54,26.80204619]
[1735635142316,1.0379,192.7,192.55,49.80022264]
[1735635142502,1.0379,192.7,192.58,6.11]
[1735635142690,1.0379,192.7,192.59,0.7785551]
[1735635143128,20.0,192.69,192.59,0.7785551]
[1735635143415,20.0,192.69,192.58,6.11]
[1735635144236,20.0,192.65,192.58,6.11]
[1735635145395,20.0,192.65,192.56,1.6411]
[1735635145890,1.0382,192.64,192.54,0.77873881]
[1735635146091,1.0382,192.64,192.53,6.11]
[1735635146092,20.0,192.6,192.53,6.11]
[1735635147122,20.0,192.69,192.53,6.88886062]
[1735635148125,3.1134,192.71,192.53,6.88886062]
[1735635148126,1.0378,192.71,192.56,49.80022264]
[1735635148318,1.0378,192.71,192.57,26.80188916]
[1735635148622,1.0378,192.71,192.57,0.77855052]
[1735635149204,20.0,192.67,192.57,0.77855052]
[1735635149623,20.0,192.67,192.58,0.77866898]
[1735635150403,20.0,192.67,192.55,26.80198739]
[1735635150902,20.0,192.67,192.56,23.776884]
[1735635151105,20.0,192.67,192.57,0.77857921]
[1735635151420,1.038,192.66,192.54,0.7787225]
[1735635151816,20.0,192.67,192.54,24.5556065]
[1735635152122,20.0,192.63,192.54,0.7787225]
[1735635152926,20.0,192.65,192.54,0.7787225]
[1735635153921,1.0379,192.7,192.55,23.776884]
[1735635154120,1.6278,192.74,192.57,26.02333864]
[1735635154312,1.0377,192.73,192.58,0.77852221]
[1735635155005,1.0375,192.76,192.62,32.65513864]
[1735635155317,2.6504,192.79,192.63,26.80171268]
[1735635155820,23.776884,192.78,192.63,26.80171268]
[1735635156117,20.0,192.75,192.64,6.41426823]
[1735635156322,20.0,192.75,192.65,0.77826409]
[1735635156540,22.6504,192.79,192.65,0.77826409]
[1735635156834,20.0,192.75,192.65,0.77826409]
[1735635157426,23.776884,192.78,192.65,0.77826409]
[1735635157619,23.776884,192.78,192.66,2.46643924]
[1735635157822,1.0373,192.79,192.67,0.77821752]
[1735635158023,20.0,192.79,192.67,0.77821752]
[1735635158326,23.776884,192.81,192.68,8.2793]
[1735635158523,23.776884,192.84,192.69,0.77816164]
[1735635158732,1.0371,192.84,192.69,0.77816164]
[1735635158907,1.0371,192.84,192.69,3.24460088]
[1735635159624,1.0371,192.84,192.69,29.26793952]
[1735635159835,1.0371,192.84,192.7,6.13960959]
[1735635160020,1.0371,192.84,192.71,0.77805488]
[1735635160524,1.0371,192.84,192.71,3.24449412]
[1735635161304,1.0369,192.88,192.71,46.80139352]
[1735635161523,1.0369,192.88,192.71,20.77805488]
[1735635161725,20.0,192.84,192.71,20.77805488]
[1735635162108,1.0369,192.88,192.72,2.46340486]
[1735635162308,2.0737,192.89,192.73,0.77793369]
[1735635162502,20.0,192.85,192.73,0.77793369]
[1735635163330,20.0,192.85,192.7,0.77805257]
[1735635163921,1.037,192.86,192.7,26.80139121]
[1735635164309,23.776884,192.85,192.7,0.77805257]
[1735635164527,23.776884,192.81,192.7,0.77805257]
[1735635164710,20.0,192.78,192.69,0.77816219]
[1735635164915,20.0,192.74,192.68,8.2793]
[1735635165836,1.0374,192.79,192.68,8.2793]
[1735635166010,6.3234,192.83,192.69,0.77827724]
[1735635166206,1.5184,192.84,192.69,0.77827724]
[1735635166430,21.0372,192.83,192.69,0.77827724]
[1735635166633,20.0,192.79,192.69,0.77827724]
[1735635166808,20.0,192.79,192.69,26.80161588]
[1735635167232,1.0372,192.83,192.71,46.02333864]
[1735635167414,1.0369,192.87,192.72,26.80130356]
[1735635167611,1.0369,192.87,192.73,23.776884]
[1735635167814,1.0369,192.87,192.75,7.6336]
[1735635168013,1.0369,192.87,192.76,0.77790031]
[1735635168221,20.0,192.83,192.76,0.77790031]
[1735635170437,1.0367,192.91,192.76,0.77790031]
[1735635170946,20.0,192.87,192.76,0.77790031]
[1735635171528,23.776884,192.87,192.76,0.77790031]
[1735635177230,20.0,192.85,192.75,7.6336]
[1735635177429,20.0,192.81,192.75,7.6336]
[1735635178028,20.0,192.81,192.7,7.6336]
[1735635178249,20.0,192.77,192.7,7.6336]
[1735635180559,23.776884,192.76,192.7,7.6336]
[1735635180765,20.0,192.73,192.7,7.6336]
[1735635182066,1.0372,192.82,192.7,7.6336]
[1735635182427,1.0372,192.82,192.65,16.20207494]
[1735635182428,23.776884,192.81,192.66,0.77826027]
[1735635182634,23.776884,192.81,192.65,7.7289]
[1735635183054,23.776884,192.81,192.66,0.77833797]
[1735635183739,23.776884,192.81,192.65,8.50721051]
[1735635184452,20.0,192.78,192.65,8.50721051]
[1735635184659,43.776884,192.78,192.65,8.50721051]
[1735635184832,43.776884,192.78,192.66,0.77831893]
[1735635186036,44.814384,192.78,192.66,0.77831893]
[1735635186242,44.814384,192.78,192.65,7.7289]
[1735635187364,46.889284,192.78,192.65,7.7289]
[1735635187553,20.0,192.73,192.61,6.1315]
[1735635187749,24.814584,192.72,192.61,6.1315]
[1735635188058,1.0377,192.72,192.61,6.91004373]
[1735635188442,20.0,192.69,192.61,6.1315]
[1735635188943,1.0377,192.72,192.61,6.1315]
[1735635189142,20.0,192.68,192.61,6.1315]
[1735635190557,20.0,192.68,192.62,0.77848138]
[1735635190965,6.0237,192.77,192.62,0.77848138]
[1735635191273,1.0375,192.76,192.62,0.77848138]
[1735635191468,20.0,192.74,192.62,0.77848138]
[1735635191667,1.0375,192.76,192.62,16.98055632]
[1735635191865,23.776884,192.81,192.62,16.98055632]
[1735635192073,26.888584,192.81,192.62,16.98055632]
[1735635192469,26.888584,192.81,192.62,0.77848138]
[1735635193462,26.888584,192.81,192.61,6.1315]
[1735635193463,28.963084,192.81,192.61,6.1315]
[1735635195373,3.1125,192.77,192.61,6.1315]
[1735635195555,3.1125,192.77,192.62,0.77849873]
[1735635196068,46.889384,192.77,192.62,0.77849873]
[1735635196376,1.0375,192.77,192.62,0.77849873]
[1735635197176,20.0,192.73,192.62,0.77849873]
[1735635197980,20.0,192.73,192.62,16.98057367]
[1735635198156,20.0,192.73,192.62,0.77849873]
[1735635198763,1.0376,192.75,192.63,1.6572]
[1735635198965,1.0376,192.75,192.64,0.77826603]
[1735635199274,1.0374,192.78,192.64,0.77826603]
[1735635200075,20.0,192.74,192.64,0.77826603]
[1735635200875,20.0,192.77,192.64,0.77826603]
[1735635201472,1.0372,192.81,192.65,46.09545894]
[1735635201665,1.0372,192.81,192.67,1.6572]
[1735635201849,1.0372,192.81,192.68,0.77808104]
[1735635202051,1.0372,192.81,192.68,16.98015598]
[1735635202273,6.4363,192.87,192.68,16.98015598]
[1735635202274,1.0371,192.85,192.69,39.97895894]
[1735635202476,1.0371,192.85,192.68,0.77808104]
[1735635202477,1.0371,192.85,192.72,1.6572]
[1735635202655,1.0369,192.89,192.73,0.7779397]
[1735635203061,20.0,192.85,192.73,0.7779397]
[1735635203473,20.0,192.81,192.73,0.7779397]
[1735635203771,23.776884,192.8,192.72,2.43525766]
[1735635204093,20.0,192.77,192.72,1.6572]
[1735635206886,1.0372,192.82,192.72,1.6572]
[1735635207561,9.15825294,192.87,192.73,0.77807898]
[1735635208357,21.0371,192.83,192.72,1.6572]
[1735635208886,21.0371,192.83,192.73,0.77809725]
[1735635209476,20.0,192.79,192.72,1.6572]
[1735635209873,23.776884,192.78,192.72,1.6572]
[1735635211489,20.0,192.85,192.72,1.6572]
[1735635211871,20.0,192.77,192.72,1.6572]
[1735635213698,1.0371,192.84,192.72,2.43529817]
[1735635213855,20.0,192.82,192.72,2.43529817]
[1735635214061,1.0371,192.84,192.72,2.43529817]
[1735635214668,1.0368,192.89,192.72,2.43529817]
[1735635214888,1.0368,192.89,192.73,23.776884]
[1735635215074,1.0368,192.89,192.74,0.77791874]
[1735635215574,1.0368,192.89,192.74,16.97999368]
[1735635216288,1.0366,192.93,192.76,6.4808]
[1735635216483,1.0366,192.93,192.77,0.77780054]
[1735635216711,1.0366,192.93,192.78,17.79747494]
[1735635216892,1.0366,192.93,192.8,16.20207494]
[1735635217187,8.12125294,192.97,192.81,16.97969664]
[1735635217487,20.0,192.94,192.81,16.97969664]